Cogmind - Beta 12 @@@ ROGUE MODE // 2023.10.23 @ 16:04:28 Player: Figgis Result: Destroyed by D-53 Grenadier with Mini Grenade Launcher Performance ------------- Evolutions (0) 0 Regions Visited (2) 400 Robots Destroyed (20) 100 Value Destroyed (412) 412 Prototype IDs (0) 0 Alien Tech Used (0) 0 Bonus (0) 0 TOTAL SCORE: 912 Bonus ------- None Cogmind --------- Core Integrity 0/250 Matter 240/300 Energy 99/250 System Corruption 0% Temperature Cool (1) Movement Walking (260) Ox2 Location -10/Mines Parts ------- > --- POWER (1) -------- Ion Engine > --- PROPULSION (2) --- Aluminum Leg > --- UTILITY (2) ------ Large Storage Unit Core Shielding > --- WEAPON (2) ------- (None) > --- INVENTORY (15) --- Ion Engine Light Treads Targeting Computer Power Shielding Bore Cannon Peak State ------------ > --- POWER ------------ Ion Engine > --- PROPULSION ------- Aluminum Leg > --- UTILITY ---------- Large Storage Unit Core Shielding > --- WEAPON ----------- Bore Cannon > --- INVENTORY -------- Ion Engine Ion Engine Light Treads Aluminum Leg Aluminum Leg Targeting Computer Power Shielding [Rating: 9] Favorites ----------- Power Ion Engine Engine Ion Engine Propulsion Light Treads Treads Light Treads Leg Aluminum Leg Utility Core Shielding Storage Large Storage Unit Protection Core Shielding Weapon Assault Rifle Energy Gun Small Laser Ballistic Gun Assault Rifle Ballistic Cannon Bore Cannon Build | -11 -10 -10 ------- Run | Jun Mat Min Slots Evolved . | . . . Power . | . . . Propulsion . | . . . Utility . | . . . Weapon . | . . . Parts Attached 21 | 3 11 7 Power 4 | 1 2 1 Engine 4 | 1 2 1 Core . | . . . Reactor . | . . . Propulsion 7 | 2 1 4 Treads 3 | 2 1 . Leg 4 | . . 4 Wheel . | . . . Hover . | . . . Flight . | . . . Utility 4 | . 4 . Device . | . . . Storage 3 | . 3 . Processor . | . . . Hackware . | . . . Protection 1 | . 1 . Artifact . | . . . Weapon 6 | . 4 2 Energy Gun 3 | . 2 1 Energy Cannon . | . . . Ballistic Gun 2 | . 2 . Ballistic Cannon 1 | . . 1 Launcher . | . . . Special Weapon . | . . . Impact Weapon . | . . . Slashing Weapon . | . . . Piercing Weapon . | . . . Special Melee Weapon . | . . . Unidentified Prototypes . | . . . Parts Lost 9 | . 1 8 Power 2 | . 1 1 Propulsion 4 | . . 4 Utility . | . . . Weapon 3 | . . 3 Highest Loss Streak 5 | . 1 5 To Critical Strikes . | . . . Average Slot Usage (%) 93 | . 96 90 Engine 13 | . 13 14 Treads 16 | . 27 1 Leg 11 | . . 25 Storage 13 | . 13 14 Protection 13 | . 12 14 Energy Gun 10 | . 14 6 Ballistic Gun 13 | . 13 13 Naked Turns . | . . . Heaviest Build 29 | 3 29 29 Greatest Support 40 | 3 40 20 Greatest Overweight (x) 2 | . . 2 Average Overweight (x) . | . . 1 Largest Inventory Capacity 15 | 5 15 15 Average Capacity 12 | 5 10 15 Most Carried 10 | 5 10 9 Average Carried 6 | 3 5 7 Final Capacity 15 | 5 15 15 Final Carried 9 | 5 9 5 Class Distribution -------------------- 100% | Mutant Dominant Class ---------------- Mutant | -10/Materials Mutant | -10/Mines Resources | -11 -10 -10 ----------- Run | Jun Mat Min Matter Collected 542 | 199 280 63 Remotely . | . . . Salvage Created 604 | . 460 144 Parts 41 | . 32 9 Haulers Intercepted 1 | . 1 . Recyclers Shooed . | . . . Parts Field Recycled . | . . . Retrieved Matter . | . . . Parts Self-Destructed . | . . . Prevented . | . . . Kills | -11 -10 -10 ------- Run | Jun Mat Min Combat Hostiles Destroyed 17 | . 13 4 Guns 17 | . 13 4 Classes Destroyed 5 | . 4 1 Hauler 1 | . 1 . Recycler 1 | . . 1 Watcher 1 | . 1 . Swarmer 9 | . 6 3 Grunt 8 | . 7 1 Best Kill Streak 5 | . 5 3 Combat Bots Only 5 | . 5 3 Max Kills in Single Turn 2 | . 2 1 Gunslinging 1 | . 1 . Exploded . | . . . Melee . | . . . Uniques/NPCs Destroyed . | . . . Combat | -11 -10 -10 -------- Run | Jun Mat Min Damage Taken 1410 | . 597 813 Core 255 | . 83 172 Absorbed by Shields . | . . . Redirected to Shielding 45 | . 14 31 Regen/Repaired (Parts) 185 | . 185 . Core Remaining (%) 100 | 100 . . Volleys Fired 68 | . 48 20 Largest 2 | . 2 2 Hottest 60 | . 60 60 Shots Fired 129 | . 96 33 Gun 124 | . 96 28 Cannon 5 | . . 5 Launcher . | . . . Special . | . . . Kinetic 68 | . 48 20 Thermal 61 | . 48 13 Explosive . | . . . Electromagnetic . | . . . Robot Hit Streak 15 | . 15 4 Robot Miss Streak 3 | . 3 3 Penetration Max 1 | . . 1 Secondary Targets 4 | . 4 . Max Gunslinging Chain 1 | . 1 . Shots Hit Robots 82 | . 66 16 Core Hits 32 | . 24 8 Critical Kills . | . . . Critical Parts Destroyed 1 | . 1 . Critical Strikes 1 | . 1 . Destroy 1 | . 1 . Melee Attacks . | . . . Impact . | . . . Slashing . | . . . Piercing . | . . . Sneak Attacks . | . . . Combat Hostiles . | . . . Follow-up Attacks . | . . . Damage Inflicted 1061 | . 820 241 Guns 1010 | . 820 190 Cannons 51 | . . 51 Explosions . | . . . Melee . | . . . Ramming . | . . . Kinetic 580 | . 452 128 Thermal 481 | . 368 113 Explosive . | . . . Electromagnetic . | . . . Impact . | . . . Slashing . | . . . Piercing . | . . . Highest Corruption . | . . . Average Corruption . | . . . Corruption Purged . | . . . Corruption Blocked . | . . . Overload Shots . | . . . Overflow Damage . | . . . Projectiles . | . . . Explosions . | . . . Melee . | . . . Knockbacks . | . . . Impact . | . . . Kinetic . | . . . Secondary . | . . . Self-Inflicted Damage . | . . . Shots . | . . . Rammed . | . . . Targets Rammed . | . . . Kicked . | . . . Crushed . | . . . Highest Temperature 90 | . 90 80 Average Temperature 35 | . 39 25 Received Heat Transfer 309 | . 219 90 Siege Activations . | . . . Robots Corrupted . | . . . Combat Hostiles . | . . . Parts Fried . | . . . Impact Corruptions . | . . . Robots Melted . | . . . Combat Hostiles . | . . . Parts Melted 2 | . 2 . Heat Transferred 1100 | . 850 250 Parts Sabotaged . | . . . Parts Stolen . | . . . Parts Stripped . | . . . Power Chain Reactions . | . . . Missiles Intercepted . | . . . Alert | -11 -10 -10 ------- Run | Jun Mat Min Peak Influence 213 | . 213 100 Initial . | . . . Average 80 | . 116 35 Maximum Alert Level 1 | . 1 . Low Security (%) 94 | 100 89 100 Level 1 5 | . 10 . Level 2 . | . . . Level 3 . | . . . Level 4 . | . . . Level 5 . | . . . High Security . | . . . Max Security . | . . . Squads Dispatched 3 | . 3 . Investigation . | . . . Extermination . | . . . Reinforcement 3 | . 3 . Assault . | . . . Garrison . | . . . Intercept . | . . . Searches Triggered . | . . . Construction Impeded . | . . . Haulers Reinforced . | . . . Active Scanning Responses . | . . . Cargo Convoy Interrupts . | . . . Stealth | -11 -10 -10 --------- Run | Jun Mat Min Distress Signals 1 | . 1 . Communications Jammed . | . . . Distress Signals . | . . . Times Spotted 33 | . 20 13 Peak Tracking Total 7 | . 4 7 Tactical Retreats . | . . . Traps | -11 -10 -10 ------- Run | Jun Mat Min Traps Triggered . | . . . Indirectly . | . . . Trap Hack Attempts . | . . . Triggered . | . . . Disarmed . | . . . Reprogrammed . | . . . Reused . | . . . Traps Extracted . | . . . Installed . | . . . Triggered . | . . . Machines | -11 -10 -10 ---------- Run | Jun Mat Min Machines Disabled . | . . . Max in Single Turn . | . . . Machines Repaired . | . . . Machines Sabotaged . | . . . Overloaded Fab Kills . | . . . Hacking | -11 -10 -10 --------- Run | Jun Mat Min Machines Accessed 5 | . 5 . Terminals 4 | . 4 . Fabricators . | . . . Repair Stations 1 | . 1 . Recycling Units . | . . . Scanalyzers . | . . . Garrison Access . | . . . Total Hacks 18 | . 18 . Successful 9 | . 9 . Failed 9 | . 9 . Catastrophic 1 | . 1 . Database Lockouts . | . . . Manual 8 | . 8 . Terminals 11 | . 11 . Fabricators . | . . . Repair Stations 7 | . 7 . Recycling Units . | . . . Scanalyzers . | . . . Garrison Access . | . . . Terminal Hacks 3 | . 3 . Robot Analysis 2 | . 2 . Unreport Threat 1 | . 1 . Fabricator Hacks . | . . . Repair Station Hacks 6 | . 6 . Scan Component 3 | . 3 . Repair 3 | . 3 . Recycling Unit Hacks . | . . . Scanalyzer . | . . . Garrison Access Hacks . | . . . Unauthorized Hacks . | . . . Terminals . | . . . Fabricators . | . . . Repair Stations . | . . . Recycling Units . | . . . Scanalyzers . | . . . Garrison Access . | . . . Data Cores Recovered . | . . . Used . | . . . Hacking Detections 5 | . 5 . Full Trace Events . | . . . Feedback Events . | . . . Feedback Blocked . | . . . Robot Schematics Acquired . | . . . Robots Built . | . . . Authchips . | . . . Time . | . . . Total Robot Build Rating . | . . . Part Schematics Acquired . | . . . Parts Built . | . . . Authchips . | . . . Time . | . . . Total Part Build Rating . | . . . Parts Repaired 3 | . 3 . Time 78 | . 78 . Parts Recycled . | . . . Recycled Matter . | . . . Retrieved Matter . | . . . Retrieved Components . | . . . Parts Scanalyzed . | . . . Part Schematics Acquired . | . . . Parts Damaged . | . . . Bothacking | -11 -10 -10 ------------ Run | Jun Mat Min Used RIF Installer . | . . . Robots Hacked . | . . . Non-combat . | . . . Combat . | . . . Robot Hacks Applied . | . . . Relay Couplers Released . | . . . Fabnet Peak Effective % . | . . . Robots Rewired . | . . . Allies Hacked . | . . . Hacks Repelled . | . . . Allies | -11 -10 -10 -------- Run | Jun Mat Min Total Allies . | . . . Largest Group . | . . . Highest-Rated Group . | . . . Highest-Rated Ally . | . . . Total Orders . | . . . Ally Attacks . | . . . Total Damage . | . . . Kills . | . . . Allies Corrupted . | . . . Allies Melted . | . . . Intel | -11 -10 -10 ------- Run | Jun Mat Min Robot Analysis Total 2 | . 2 . Derelict Logs Recovered 1 | . . 1 Drone Launches . | . . . Drone Recoveries . | . . . Exploration | -11 -10 -10 ------------- Run | Jun Mat Min Turns Passed 1824 | 26 1020 778 Spaces Moved 891 | 31 488 372 Core 62 | 31 31 . Treads 459 | . 457 2 Legs 370 | . . 370 Wheels . | . . . Hover . | . . . Flight . | . . . Fastest Speed 50 | 50 50 190 Average Speed 166 | 50 153 192 Slowest Speed 260 | 50 160 260 Overloaded Moves . | . . . Propulsion Burnouts . | . . . Robots Hopped . | . . . Cave-ins Triggered . | . . . Exploration Rate (%) 58 | 3 89 82 Regions Visited 2 Branch Regions 1 Pre-discovered Areas . | . . . Known Exits Taken . | . . . Unknown Exits Taken 2 | 1 1 . Scrap Searched . | . . . Spaces Dug . | . . . Terrain Destroyed 3 | . . 3 Melee . | . . . Projectile 3 | . . 3 AOE . | . . . Terrain Rammed . | . . . Walls Destroyed . | . . . Machines Disabled . | . . . Actions | -11 -10 -10 --------- Run | Jun Mat Min Total 1107 | 40 665 402 Wait 104 | . 103 1 Move 889 | 30 487 372 Hop . | . . . Pick Up 22 | 7 14 1 Fast Attach 1 | 1 . . Attach 16 | 2 8 6 Detach 1 | . . 1 Swap 4 | . 3 1 Drop 2 | . 2 . Fire 68 | . 48 20 Melee . | . . . Ram . | . . . Kick . | . . . Crush . | . . . Escape Stasis . | . . . Rewire . | . . . Trap . | . . . Miscellaneous . | . . . Route ------- -11/Junkyard -10/Materials (discovered 4 exits: [*Mat x2] / [*Min x2]) -10/Mines (discovered 2 exits: [*Mat x2]) History --------- Turn | Location | Event 6 | -11/Junkyard | Discovered new exit (range 15) 27 | -11/Junkyard | Entered Materials 283 | -10/Materials | Repaired Lgt. Treads 310 | -10/Materials | Build established: Mutant 315 | -10/Materials | Repaired Assault Rifle 344 | -10/Materials | Repaired Ion Engine 644 | -10/Materials | Discovered new exit (range 10) 717 | -10/Materials | Discovered new exit (range 13) 770 | -10/Materials | Discovered new exit (range 14) 957 | -10/Materials | Discovered new exit (range 11) 1047 | -10/Materials | Entered Mines 1089 | -10/Mines | Met a Derelict bent on vengeance 1141 | -10/Mines | Discovered new exit (range 5) 1216 | -10/Mines | A weapon hastily lodged in a ceiling crevice suddenly fell to the ground 1268 | -10/Mines | Discovered new exit (range 12) 1381 | -10/Mines | Assembled infested the area 1618 | -10/Mines | Learned Materials stockpile data 1802 | -10/Mines | Core integrity fell below 50% 1820 | -10/Mines | Core integrity fell below 20% 1825 | -10/Mines | Destroyed by D-53 Grenadier with Mini Grenade Launcher Last Messages --------------- 01810_ The unstable cave ceiling collapses. 01811_ HV Slug penetrates D-53 Grenadier. 01813_ U-05 Engineer lays Concrete. 01814_ The unstable cave ceiling collapses. 01814_ U-05 Engineer lays Concrete. 01815_ The unstable cave ceiling collapses. 01815_ HV Slug penetrates Wall. 01815_ R-06 Scavenger destroyed. 01815_ U-05 Engineer lays Concrete. 01818_ The unstable cave ceiling collapses. 01818_ U-05 Engineer lays Concrete. 01819_ Aluminum Leg destroyed. 01819_ Core Extractor disabled. 01819_ U-05 Engineer lays Concrete. 01821_ The unstable cave ceiling collapses. 01821_ U-05 Engineer builds a Wall. 01821_ Ion Engine destroyed. 01822_ The unstable cave ceiling collapses. 01824_ Aluminum Leg destroyed. 01825_ U-05 Engineer lays Concrete. Map ----- +----------------------------------------------------+ | ## ##????????????????# ###?????????????? | | # ##???????????????# #???????????????? | | # ##???????###????## #??????????????? | | # ##?????# ##????## #??????????????? | | ##???# #?????# #??????????????? | | ## ##?# #?????# ##??????????????? | | ### ## #????? ##???????????????? | | #?## #?????? ##??####??????????? | | # ##?## #####??????# ##??## ##?????????? | | ####??# ##??????????## ##???# ##????????? | | ?????## ##????????????#*#????# #????????? | | ????## ##????????????#!###### #????????? | | ???## ##???????????#%## #?????????? | | ??## #???????????#%## ##?????????? | | ### #???####?####!## ### #??###?????? | | #??## ###"%=* ### ### ##????? | | #### # % ;###### ##???? | | # ##### ##?## #???? | | ###### ==u #?# #???? | | ?????## [t dd # #?# ##???? | | ??????## ### ## ### #????? | | ???????# ## ## ## ##????? | | ???????## ## ## ##?###?????? | | ????????#### ### ### = #??????????? | | ???????????## #?# #####%%##?????????? | | ????????????# ##?# @ #??##[ #?????????? | | ???????????## ##??## #???#= ##########? | | ???????????# #????# " #???# #? | | ??????????## #????## r""" #???## ######## #? | | ###??????## #?????# #????###??????# #? | | ##????## ##?????# < #?????????????# #? | | #??### ##??????# #?????????????# #? | | #?## ##???????# #?????????????# #? | | #??# #????????# #?????????????# #? | | #??# ##???????##########?????????????# #? | | #??# ##???????????????????????????### ## | | ##??# # #???????????????????????????# | | ##???# ## #??????????????????????###### | | #????# #########??????????????????????# | | #????# #?????###??????????????????????# < | | #??### ###??# ##?????####???????????## #### | | #?## ### ##???## ??????????## ##?# | | ?## """ #???# ??????????# ### | | ## """ #??## #??????????# ####### | | """ ##??# #??????????# #?????? | | ## ## #???# ##????????## #?????? | | ?##### ##?? #??# ####?##### ##?????? | | ????## ##???? #??# %### ###??????? | | #???# ##???????#??# ##????????? | | ##?## #???????????## ### #?????????? | +----------------------------------------------------+ Best States ------------- Heat Dissipation 25 Energy Generation 10 Energy Capacity 250 Matter Stores 300 Matter Capacity 300 Sight Range 16 Terrain Scan Density 10 Core Shielding 20 Evasion (%) 50 Recoil Reduction 2 Item Schematics ----------------- None Robot Schematics ------------------ None Fabricated ------------ Nothing Alien Tech Used ----------------- None Achievements -------------- None Challenges ------------ None Game ------ Seed BurstLinearBrace Manual? 0 Play Time 00:09:59 Cumulative 83.2 hours Start 2023.10.23 @ 15:56:49 End 2023.10.23 @ 16:04:28 Sessions 1 Manual Loads 0 Difficulty Rogue Special Mode None Game No. 142 Rogue 139 Adventurer 3 Explorer 0 Win Type - Total 0 Types 0/0/0/0/0/0/0/0/0 Lore% 34 Gallery% 52 Achievement% 37 Wizard Run 0 Options --------- ASCII 0 Keyboard 0 Movement Mouse Keybinds 0 Fullscreen 2 Font 18/SmallcapsGlow Map View 76x50 Tactical HUD 1 Map Filters NONE Filters NONE Steam 1 RUN: a8140fb8-c9d2-4821-9745-9c58aff02279